[Event "CCT Airthings Masters Play-In 2023"]
[Site "Online"]
[Date "2023.02.03"]
[Round "3"]
[White "Lazavik, Denis"]
[Black "Antipov_Mikhail_Al"]
[Result "1-0"]
[ECO "E05"]
[WhiteElo "2541"]
[BlackElo "2581"]
[Annotator "TA"]
[PlyCount "181"]
[EventDate "2023.02.03"]
[EventType "swiss"]
[EventCountry "NET"]
[SourceTitle "playchess.com"]
[Source "ChessBase"]
[SourceQuality "1"]
[TimeControl "600+2"]

{[%evp 18,181,24,8,6,7,19,18,16,9,9,0,0,0,0,0,0,0,0,0,0,0,16,10,19,6,8,3,7,4,47,52,47,42,69,71,72,63,68,66,61,64,80,73,81,94,81,66,64,57,79,101,175,117,144,160,218,213,214,211,360,352,395,241,471,473,511,513,508,473,450,425,407,405,460,452,540,538,603,597,931,893,2171,1282,29985,29986,29997,29982,29982,29983,29988,29989,29989,5006,5202,5297,1963,1502,29979,29980,29980,531,1028,130,125,129,600,112,886,153,152,152,145,138,139,136,676,139,29978,29980,29980,29975,29966,129,132,115,133,108,29966,29968,29967,29969,29979,29980,29980,29981,29980,29981,29981,29982,29981,29981,29984,29983,29985,29982,29982,29983,29982,29983,29985,29987,29987,29988,29988,29989,29990,29991,29994,29991,29993,29993,29993,29994,29994,29995]} 1. d4 {[%emt 0:00:04]} Nf6 {[%emt 0:00:04]} 2. c4 {[%emt 0:00:01]} e6 {[%emt 0:00:01]} 3. Nf3 {[%emt 0:00:02]} d5 {[%emt 0:00:01]} 4. g3 {[%emt 0:00:01]} Be7 {[%emt 0:00:04]} 5. Bg2 {[%emt 0:00:01]} O-O {[%emt 0:00:02]} 6. O-O {[%emt 0:00:01]} dxc4 {[%emt 0:00:05]} 7. Qc2 {[%emt 0:00:01]} a6 {[%emt 0:00:02]} 8. a4 {[%emt 0:00:01]} Bd7 {[%emt 0:00:03]} 9. Qxc4 {[%emt 0:00:02]} Bc6 {[%emt 0:00:01]} 10. Bg5 {[%emt 0:00:01]} Nbd7 {[%emt 0:00:18] E05: Open Catalan: 5 Nf3 Be7.} 11. Rd1 {[%emt 0:00:03]} h6 {[%emt 0:00:07]} 12. Bxf6 {[%emt 0:00:02]} Nxf6 {[%emt 0:00:00] The position is equal.} 13. Nbd2 {[%emt 0:00:00] [#]} Qb8 $146 {[%emt 0:00:12]} ({Predecessor:} 13... a5 14. Qd3 Bb4 15. e4 Bxd2 16. Nxd2 Qe7 17. Nc4 Rfd8 18. Ne5 Be8 19. Qc3 b6 {1-0 Ding,L (2811)-Grischuk,A (2745) Speed Chess Chess.com INT blitz 2022 (1.22)}) 14. Ne5 {[%emt 0:01:10]} Bxg2 {[%emt 0:00:02]} 15. Kxg2 {[%emt 0:00:01]} c5 {[%emt 0:00:06]} 16. Ndf3 {[%emt 0:00:07]} cxd4 {[%emt 0:00:19]} 17. Qxd4 {[%emt 0:00:05]} Rd8 {[%emt 0:00:08]} 18. Qc4 {[%emt 0:00:04]} Rc8 {[%emt 0:00:34]} 19. Qb3 {[%emt 0:00:05]} Rc7 {[%emt 0:01:07]} 20. Rac1 {[%emt 0:01:36]} Nd5 {[%emt 0:02:03]} 21. Nd3 {[%emt 0:00:49]} Rxc1 {[%emt 0:00:43]} 22. Rxc1 {[%emt 0:00:02]} b5 {[%emt 0:00:00]} 23. axb5 {[%emt 0:00:23]} Qxb5 {[%emt 0:00:02]} 24. Qxb5 {[%emt 0:00:16]} axb5 {[%emt 0:00:00]} 25. Nd4 {[%emt 0:00:06]} b4 {[%emt 0:00:10]} 26. Nc6 {[%emt 0:00:12]} Bf8 {[%emt 0:00:27]} 27. e4 {[%emt 0:00:08]} Nf6 {[%emt 0:00:07]} 28. f3 {[%emt 0:00:09]} (28. Ndxb4 Nxe4 29. Nd3 Nf6 $11) 28... g5 {[%emt 0:00:43]} 29. Ndxb4 {[%emt 0:00:28] White is more active.} g4 {[%emt 0:00:23]} 30. Nd3 {[%emt 0:00:02]} gxf3+ {[%emt 0:00:09]} 31. Kxf3 {[%emt 0:00:01]} Ra4 {[%emt 0:00:01]} 32. Re1 {[%emt 0:00:53]} h5 {[%emt 0:00:06]} 33. h3 {[%emt 0:00:04]} Rc4 {[%emt 0:00:09]} 34. Nce5 {[%emt 0:00:25]} Rc2 {[%emt 0:00:04]} (34... Ra4 $16) 35. Ra1 {[%emt 0:00:22]} (35. Rc1 $1 $18 {[%cal Rc1c2]} Rxc1 36. Nxc1) 35... Rd2 {[%emt 0:02:29]} 36. Ra8 {[%emt 0:00:07]} Kg7 {[%emt 0:00:01]} (36... Nh7 $16) 37. Ra7 $18 {[%emt 0:00:07]} Kg8 {[%emt 0:00:01]} 38. b4 {[%emt 0:00:28]} (38. Rxf7 Rxd3+ 39. Nxd3 Kxf7 $17) 38... Ne8 {[%emt 0:00:04]} (38... Nh7 {was worth a try.} 39. Ke3 (39. Rxf7 Rxd3+ 40. Nxd3 Kxf7 $17) 39... Bh6+ 40. Nf4 Rg2 41. Ra8+ (41. Nxf7 Rxg3+ 42. Kf2 Bxf4 $11) 41... Nf8) 39. Ra8 {[%emt 0:00:24]} (39. Rxf7 Rxd3+ 40. Nxd3 Kxf7 $15) 39... Nd6 {[%emt 0:00:09]} 40. Ke3 {[%emt 0:00:14]} Rd1 {[%emt 0:00:10]} (40... Rg2 41. Kf3 Rd2) 41. Ke2 {[%emt 0:00:16]} Rg1 {[%emt 0:00:01]} 42. Nd7 {[%emt 0:00:01]} Nxe4 {[%emt 0:00:06]} 43. Rxf8+ {[%emt 0:00:04]} Kg7 {[%emt 0:00:00]} 44. N3e5 {[%emt 0:00:14]} Nd6 {[%emt 0:00:02]} 45. Kf2 {[%emt 0:00:23]} Rb1 {[%emt 0:00:02]} 46. Rb8 {[%emt 0:00:02]} Rb3 {[%emt 0:00:01]} 47. Nc5 {[%emt 0:00:04] Against Ne4+} Rc3 {[%emt 0:00:00]} 48. Rd8 {[%emt 0:00:11]} Nf5 {[%emt 0:00:01]} 49. Rd7 {[%emt 0:00:02][%csl LRe6,LRf7]} Kg8 {[%emt 0:00:03]} 50. Nxf7 {[%emt 0:00:04]} Nxg3 {[%emt 0:00:05]} 51. Ng5 {[%emt 0:00:04]} Kf8 {[%emt 0:00:04]} 52. Ncxe6+ {[%emt 0:00:09]} Ke8 {[%emt 0:00:01]} 53. Rc7 {[%emt 0:00:03]} Rb3 {[%emt 0:00:01]} 54. Ng7+ {[%emt 0:00:03]} Kf8 {[%emt 0:00:03]} 55. N5e6+ {[%emt 0:00:03]} (55. Nh7+ $142 Kg8 56. Nf6+ Kh8 57. Nge8 Ne4+ {[%mdl 64] Discovered Attack} 58. Ke2 Rb2+ 59. Ke3 Ng5 60. Rg7) 55... Kg8 {[%emt 0:00:01]} 56. Ne8 {[%emt 0:00:22]} Ne4+ {[%emt 0:00:00]} 57. Ke2 {[%emt 0:00:01] Strongly threatening Rg7+.} Rxh3 {[%emt 0:00:03]} 58. Rg7+ {[%emt 0:00:28]} Kh8 {[%emt 0:00:01]} 59. Rf7 {[%emt 0:00:05]} (59. Nf4 $142 Rg3 60. Ng6+ Rxg6 61. Rxg6 Nc3+ 62. Kd2 Nb1+ 63. Kd3 Kh7 64. Rg7+ Kh6 65. b5) 59... Rb3 {[%emt 0:00:03]} 60. Rf4 $2 {[%emt 0:00:06]} (60. Nf4 $18 {Intending Ng6+ and mate.} Kg8 61. Re7) 60... Rxb4 $16 {[%emt 0:00:03]} 61. Ke3 {[%emt 0:00:04][%cal Oe8c7]} Ra4 $2 {[%emt 0:00:03][%mdl 8192]} (61... Nc3 $16) 62. N8c7 $2 {[%emt 0:00:03]} (62. Rxe4 Rxe4+ 63. Kxe4 h4 $11) (62. Ng5 $18 {[%cal Rf4f8] has better winning chances.} Ra3+ 63. Kxe4 Ra4+ 64. Kf5 Rxf4+ 65. Kxf4) 62... h4 $2 {[%emt 0:00:02][%mdl 8192] [#]} 63. Rxh4+ $2 {[%emt 0:00:01]} (63. Rxe4 Rxe4+ 64. Kxe4 h3 $11) (63. Nd5 $1 $18 {and the rest is easy.} h3 64. Rh4+ (64. Rxe4 $2 {loses.} Rxe4+ 65. Kxe4 h2 $19) 64... Kg8 65. Rg4+ (65. Rxe4 $2 {is the wrong capture.} Rxe4+ 66. Kxe4 h2 $19) 65... Kf7 66. Ng5+ (66. Rxe4 $2 Rxe4+ 67. Kxe4 h2 $19) 66... Nxg5 67. Rxa4) 63... Kg8 {[%emt 0:00:01]} 64. Rf4 {[%emt 0:00:01][%cal Oc7d5] aiming for Nd5!} ({Stronger than} 64. Rxe4 Rxe4+ 65. Kxe4 Kh8 $11) 64... Nc3 {[%emt 0:00:03][%cal Oc3d5] Repels Nd5} 65. Rf8+ {[%emt 0:00:01]} Kh7 {[%emt 0:00:00]} 66. Kd3 {[%emt 0:00:04]} Nd1 $2 {[%emt 0:00:03][%mdl 8192]} (66... Ra3 $16) 67. Rf1 $2 {[%emt 0:00:02]} (67. Nd5 $18 {is the precise move to win.}) 67... Nb2+ $2 {[%emt 0:00:01][%mdl 8192]} (67... Ra3+ $16 68. Kd4 Ra4+ 69. Ke5 Ne3) 68. Kc3 {[%emt 0:00:01]} Nc4 {[%emt 0:00:00]} 69. Rh1+ {[%emt 0:00:05]} Kg6 {[%emt 0:00:01]} 70. Nd5 $2 {[%emt 0:00:00]} (70. Rg1+ {mates} Kf5 71. Nc5 Nb2 72. Kxb2 Rc4 73. N7e6 Rg4 74. Rf1+ Ke5 75. Kc3) 70... Ne5 {[%emt 0:00:03]} 71. Rg1+ {[%emt 0:00:01]} Kf7 {[%emt 0:00:04]} 72. Ng5+ {[%emt 0:00:02]} Kf8 $2 {[%emt 0:00:04][%mdl 8192] [#]} (72... Kg6 $16) 73. Rf1+ $1 {[%emt 0:00:01] White mates.} Kg7 {[%emt 0:00:01]} 74. Ne6+ {[%emt 0:00:01]} Kg6 {[%emt 0:00:02]} 75. Ne7+ {[%emt 0:00:01]} Kh5 {[%emt 0:00:04]} 76. Rf5+ {[%emt 0:00:00]} Kg4 {[%emt 0:00:00]} 77. Rxe5 {[%emt 0:00:01]} Ra3+ {[%emt 0:00:00]} 78. Kb4 {[%emt 0:00:01]} Ra1 {[%emt 0:00:01]} 79. Nd5 {[%emt 0:00:01]} Rb1+ {[%emt 0:00:01]} 80. Kc5 {[%emt 0:00:01]} Rc1+ {[%emt 0:00:01]} 81. Kd6 {[%emt 0:00:01]} Ra1 {[%emt 0:00:00]} 82. Rg5+ {[%emt 0:00:01]} Kf3 {[%emt 0:00:01]} 83. Rg8 {[%emt 0:00:01]} Ra6+ {[%emt 0:00:01]} 84. Ke5 {[%emt 0:00:00]} Ra1 {[%emt 0:00:00]} 85. Nd4+ {[%emt 0:00:01]} Kf2 {[%emt 0:00:01]} 86. Rf8+ {[%emt 0:00:03]} Kg2 {[%emt 0:00:02]} 87. Ne3+ {[%emt 0:00:01]} Kh2 {[%emt 0:00:01]} 88. Ke4 {[%emt 0:00:03]} Ra7 {[%emt 0:00:01]} 89. Rh8+ {[%emt 0:00:04]} Kg3 {[%emt 0:00:01]} 90. Rg8+ {[%emt 0:00:00]} Kh3 {[%emt 0:00:02]} 91. Kf3 {[%emt 0:00:04] Weighted Error Value: White=0.09 (flawless) /Black=0.44} 1-0

[Event "CCT Airthings Masters Play-In 2023"]
[Site "Online"]
[Date "2023.02.03"]
[Round "3"]
[White "chessintuit"]
[Black "hissha"]
[Result "1-0"]
[ECO "C42"]
[WhiteElo "2536"]
[BlackElo "2288"]
[Annotator "TA"]
[PlyCount "89"]
[EventDate "2023.02.03"]
[EventType "swiss"]
[EventCountry "NET"]
[SourceTitle "playchess.com"]
[Source "ChessBase"]
[SourceQuality "1"]
[TimeControl "600+2"]

{[%evp 13,89,59,59,43,45,46,45,4,39,4,27,22,31,22,36,-2,47,28,39,39,29,28,40,7,44,20,12,0,9,18,26,23,77,4,23,0,0,0,0,-9,49,-7,0,0,42,-19,36,-162,-150,-163,-151,-149,0,-94,-115,-154,-42,-279,-16,-221,-70,-61,-69,-71,-18,-107,-96,-116,-117,-105,29,-99,-103,-108,0,-117,120,120]} 1. e4 {[%emt 0:00:03]} e5 {[%emt 0:00:06]} 2. Nf3 {[%emt 0:00:00]} Nf6 {[%emt 0:00:03]} 3. Nc3 {[%emt 0:00:15]} Bb4 {[%emt 0:00:04]} 4. Nxe5 {[%emt 0:00:12]} O-O {[%emt 0:00:04]} 5. Nf3 {[%emt 0:01:21]} Re8 {[%emt 0:00:39]} 6. Be2 {[%emt 0:01:06]} Nxe4 {[%emt 0:00:08]} 7. Nxe4 {[%emt 0:00:08]} Rxe4 {[%emt 0:00:04]} 8. O-O {[%emt 0:00:00] C42: Petroff Defence: 3 Nxe5 and unusual White 3rd moves.} d5 {[%emt 0:00:19]} 9. d4 {[%emt 0:00:06]} Re8 {[%emt 0:00:42]} 10. Bd3 {[%emt 0:00:12] White is slightly better.} (10. c3 $5 {[%cal Rc3b4]} Bd6 11. Bd3 $11) 10... h6 {[%emt 0:00:19] [#]} 11. h3 $146 {[%emt 0:00:02]} ({Predecessor:} 11. Bf4 Nc6 12. c3 Bd6 13. Qd2 Qf6 14. Bxd6 Qxd6 15. Rfe1 Bg4 16. Rxe8+ Rxe8 17. Re1 Rxe1+ 18. Nxe1 {0-1 Paldus,P (1984)-Richterova,N (1801) Novy Bor op 3rd 2012 (4)}) 11... Nd7 {[%emt 0:00:18]} 12. Bf4 {[%emt 0:00:13]} Nf8 {[%emt 0:00:32]} 13. Ne5 {[%emt 0:00:27]} Bd6 {[%emt 0:00:21]} 14. Qf3 {[%emt 0:00:21][%cal Oe5f7] aiming for Nxf7!} Be6 {[%emt 0:00:38]} (14... Qf6 $11) 15. Rfe1 {[%emt 0:00:49]} c6 {[%emt 0:00:22]} 16. Qg3 {[%emt 0:01:15]} Qf6 {[%emt 0:01:22]} 17. Bd2 {[%emt 0:00:01]} Rad8 {[%emt 0:00:28][%cal Of8g6]} 18. c3 {[%emt 0:00:48][%cal Oe5g4]} Kh8 {[%emt 0:00:22]} (18... Ng6 {looks sharper.} 19. Ng4 Bxg4 20. Qxg4 Nf4) 19. f4 {[%emt 0:00:05]} (19. Rad1 {keeps more tension.} Kg8 20. Ng4 Bxg4 21. Qxg4 Re6 22. Rxe6 Qxe6 23. Re1) 19... Bf5 {[%emt 0:00:40]} 20. Rf1 {[%emt 0:00:10]} Bxd3 {[%emt 0:00:08]} 21. Qxd3 {[%emt 0:00:02]} Kg8 {[%emt 0:00:13]} 22. Rae1 {[%emt 0:00:05]} Bxe5 {[%emt 0:00:19]} (22... Rc8 $11) 23. fxe5 {[%emt 0:00:03]} (23. dxe5 $16 Qh4 24. Be3) 23... Qg6 $11 {[%emt 0:00:03]} 24. Qe3 {[%emt 0:00:22]} Ne6 {[%emt 0:00:04]} 25. Rf3 {[%emt 0:00:11]} Ng5 {[%emt 0:00:29]} 26. Rg3 {[%emt 0:00:02] Threatens to win with h4.} Qh7 {[%emt 0:00:09]} (26... Qe6 $11) 27. Rg4 {[%emt 0:00:33]} (27. Qf2 $14) 27... Re6 {[%emt 0:00:15]} 28. Rf1 {[%emt 0:00:25]} Rde8 {[%emt 0:00:03]} 29. Qf4 {[%emt 0:00:41]} (29. Qf2 $14 f5 30. Qxf5) 29... Rf8 {[%emt 0:00:09]} (29... f6 $11) 30. Qf5 $2 {[%emt 0:00:16]} (30. c4 $14 {stays ahead.} f6 31. h4) 30... Qxf5 $19 {[%emt 0:00:04]} 31. Rxf5 {[%emt 0:00:00]} Ne4 {[%emt 0:00:23]} 32. Be3 {[%emt 0:00:03]} Rg6 {[%emt 0:00:09]} (32... g5 $17 {And now ...Kg7 would win.} 33. h4 f6 34. hxg5 fxg5) 33. Rff4 {[%emt 0:00:30]} (33. Rxg6 $11 fxg6 34. Rf1) 33... Rxg4 $17 {[%emt 0:00:07]} 34. Rxg4 {[%emt 0:00:00][%mdl 4096] Endgame KRB-KRN} Kh7 {[%emt 0:00:04]} ({Black should play} 34... g5 $17 {...Kg7 would be deadly.} 35. h4 f5 36. exf6 Rxf6 37. hxg5 hxg5 38. Bxg5 Rg6 39. Rxe4 dxe4) 35. Kf1 $2 {[%emt 0:00:06]} (35. Rf4 $15) 35... Re8 $2 {[%emt 0:00:08]} (35... g5 $19 36. Ke2 Kg6 37. Rxe4 dxe4) 36. Ke2 $2 {[%emt 0:00:12] [#]} (36. Rf4 $11 {and White stays safe.} Re7 37. Ke2) 36... f5 $2 {[%emt 0:00:13]} ({Black should try} 36... g5 $1 $19 {...Kg6 is the strong threat.} 37. h4 f5 38. exf6 Kg6) 37. Rf4 $15 {[%emt 0:00:03]} g5 {[%emt 0:00:09]} 38. Rf3 {[%emt 0:00:02] Dodges Ng3+} f4 {[%emt 0:00:09]} (38... a5 $17) 39. Bc1 {[%emt 0:00:01]} (39. Bf2 $1 $11) 39... Kg6 {[%emt 0:00:07]} 40. b3 {[%emt 0:00:05]} Kf5 {[%emt 0:00:09]} 41. Kd3 {[%emt 0:00:03]} h5 {[%emt 0:00:06]} (41... Ke6 $17) 42. Rf1 {[%emt 0:00:02]} (42. h4 $1 $11) 42... Ng3 {[%emt 0:00:06]} 43. Rf2 {[%emt 0:00:03][%cal Oh3h4]} Ne4 {[%emt 0:00:04]} (43... h4 $17) 44. Rf3 {[%emt 0:00:01]} (44. Rf1 $11 {was the only way to keep the balance.}) 44... Ng3 $2 {[%emt 0:00:05] [#]} (44... h4 $17 {keeps the pressure on.}) 45. h4 $1 {[%emt 0:00:03][%mdl 512] Weighted Error Value: White=0.52/Black=0.51} 1-0

[Event "CCT Airthings Masters Play-In 2023"]
[Site "Online"]
[Date "2023.02.03"]
[Round "3"]
[White "alexrustemov"]
[Black "DJ_Haubi"]
[Result "1-0"]
[ECO "A88"]
[WhiteElo "2530"]
[BlackElo "2257"]
[Annotator "TA"]
[PlyCount "111"]
[EventDate "2023.02.03"]
[EventType "swiss"]
[EventCountry "NET"]
[SourceTitle "playchess.com"]
[Source "ChessBase"]
[SourceQuality "1"]
[TimeControl "600+2"]

{[%evp 16,111,51,42,71,25,31,0,-2,-6,0,-5,68,62,66,33,79,83,78,71,77,88,114,44,47,47,93,88,91,85,88,67,67,70,79,75,85,62,66,63,58,50,54,43,43,16,91,28,203,200,204,208,198,200,214,206,339,320,653,653,653,653,653,653,611,569,1170,1170,1170,1170,1045,860,29963,29964,29976,29975,29977,29978,29981,29975,29981,29982,29982,29977,29978,29979,29984,29973,29986,29983,29986,29987,29990,29990,29996,29997,29997,29998]} 1. d4 {[%emt 0:00:03]} g6 {[%emt 0:00:04]} 2. c4 {[%emt 0:00:02]} Bg7 {[%emt 0:00:02]} 3. Nf3 {[%emt 0:00:02]} f5 {[%emt 0:00:04]} 4. g3 {[%emt 0:00:04]} Nf6 {[%emt 0:00:03]} 5. Bg2 {[%emt 0:00:06]} O-O {[%emt 0:00:02]} 6. O-O {[%emt 0:00:04]} c6 {[%emt 0:00:03]} 7. Nc3 {[%emt 0:00:04]} d6 {[%emt 0:00:08]} 8. Qc2 {[%emt 0:00:02]} Qc7 {[%emt 0:00:03]} 9. e4 {[%emt 0:00:05]} e5 {[%emt 0:00:08] A88: Dutch Defence: Leningrad System: 5 Nf3 0-0 6 0-0 d6 7 Nc3 c6.} 10. dxe5 {[%emt 0:00:26]} (10. c5 $16 {Strongly threatening cxd6.} dxc5 11. dxe5 Nxe4 12. Nxe4 fxe4 13. Qxe4) 10... dxe5 $11 {[%emt 0:00:03]} 11. exf5 {[%emt 0:00:08]} Bxf5 {[%emt 0:00:12] The position is equal.} 12. Qe2 {[%emt 0:00:03][%cal Oh2h3]} Nbd7 {[%emt 0:00:11]} 13. h3 {[%emt 0:00:47] [#]} Kh8 $146 {[%emt 0:01:18]} (13... Nc5 $11) ({Predecessor:} 13... Nc5 14. Qe3 {½-½ Gual Pascual,A (2400)-Mellado Trivino,J (2451) ESP-ch op-A Cala Mendia 2001 (8)}) 14. Be3 {[%emt 0:00:10]} Rae8 {[%emt 0:00:27]} 15. g4 {[%emt 0:00:12]} Be6 {[%emt 0:00:04]} (15... e4 $14 16. Nd2 Be6) 16. Ng5 $16 {[%emt 0:00:02]} (16. Bxa7 $2 b6 17. Ng5 Bg8 18. Bxb6 Qxb6 $19) 16... Bg8 {[%emt 0:00:08]} 17. Nge4 {[%emt 0:00:11] White is much more active.} (17. Bxa7 $2 b6 18. Bxb6 Qxb6 $19) 17... Nxe4 {[%emt 0:00:22]} 18. Nxe4 {[%emt 0:00:03]} (18. Bxe4 $6 Qa5 $11) 18... Nf6 {[%emt 0:00:03]} 19. Rad1 {[%emt 0:00:06]} (19. Bxa7 $2 {perishes.} Nxe4 20. Qxe4 (20. Bxe4 $2 b6 $19) 20... b6 21. Bxb6 Qxb6 $19) (19. Bc5 $16) 19... Nxe4 $14 {[%emt 0:00:04]} 20. Bxe4 {[%emt 0:00:03]} b6 {[%emt 0:00:41]} (20... a6 $14 {should be considered.}) 21. b3 $16 {[%emt 0:00:06]} Rd8 {[%emt 0:00:42]} 22. Bg5 {[%emt 0:00:29]} Rd4 {[%emt 0:00:09]} 23. f3 {[%emt 0:00:12]} Bf6 {[%emt 0:00:30]} 24. Be3 {[%emt 0:00:14]} Rdd8 {[%emt 0:00:12]} 25. Rxd8 {[%emt 0:00:14]} Rxd8 {[%emt 0:00:03]} 26. Rd1 {[%emt 0:00:01]} Rxd1+ {[%emt 0:00:35]} 27. Qxd1 {[%emt 0:00:02]} Be6 {[%emt 0:00:10]} 28. c5 {[%emt 0:00:10]} Be7 {[%emt 0:00:05]} 29. cxb6 {[%emt 0:00:56]} axb6 {[%emt 0:00:01]} 30. Qd3 {[%emt 0:00:01]} b5 {[%emt 0:00:24] [#]} (30... c5 $11) 31. Qc3 {[%emt 0:00:07]} ({White should try} 31. Kg2 $1 $16) 31... Bd7 $2 {[%emt 0:00:07] This costs Black the game.} (31... c5 $11 {and Black stays safe.}) 32. a4 $18 {[%emt 0:00:09]} bxa4 {[%emt 0:00:06]} 33. bxa4 {[%emt 0:00:00] And now a5 would win.} c5 {[%emt 0:00:13]} 34. a5 {[%emt 0:00:08]} Bb5 {[%emt 0:00:09]} 35. f4 {[%emt 0:00:10]} Bd6 {[%emt 0:00:08]} (35... Kg7 $142 36. fxe5 (36. Qxe5+ Qxe5 37. fxe5 Bc4 $16) 36... Qd8) 36. fxe5 {[%emt 0:00:04][%mdl 64] Deflection} Bxe5 {[%emt 0:00:06]} (36... Qg7 37. Bb7 (37. Bxc5 Bxe5 38. Qe3 Bc7 $18) 37... Qxb7) 37. Qxc5 {[%emt 0:00:01]} Qxc5 {[%emt 0:00:04]} 38. Bxc5 {[%emt 0:00:02][%mdl 4096] Endgame KBB-KBB} Bc3 {[%emt 0:00:05]} 39. Bb6 {[%emt 0:00:04]} Kg7 {[%emt 0:00:04]} 40. Bb7 {[%emt 0:00:03]} Kf6 {[%emt 0:00:20]} 41. a6 {[%emt 0:00:04]} Bxa6 {[%emt 0:00:03]} 42. Bxa6 {[%emt 0:00:02]} Bd2 {[%emt 0:00:03]} 43. Kg2 {[%emt 0:00:05]} h5 {[%emt 0:00:04]} 44. Kf3 {[%emt 0:00:11] White mates.} Kg5 {[%emt 0:00:12]} 45. Bd8+ {[%emt 0:00:05]} Kh6 {[%emt 0:00:01]} 46. Ke4 {[%emt 0:00:11]} Bc1 {[%emt 0:00:07]} 47. Be2 {[%emt 0:00:13]} Bd2 {[%emt 0:00:05]} 48. Ke5 {[%emt 0:00:06]} Bg5 {[%emt 0:00:12]} 49. Bb6 {[%emt 0:00:12]} Bc1 {[%emt 0:00:08]} 50. Kf6 {[%emt 0:00:10]} Bd2 {[%emt 0:00:09]} 51. Bf2 {[%emt 0:00:10]} Bc1 {[%emt 0:00:05]} 52. Bh4 {[%emt 0:00:07]} Bb2+ {[%emt 0:00:06]} 53. Kf7 {[%emt 0:00:03]} Bc1 {[%emt 0:00:00]} 54. Bf6 {[%emt 0:00:06]} Bd2 {[%emt 0:00:10] [#]} 55. g5+ $1 {[%emt 0:00:09]} Bxg5 {[%emt 0:00:02]} 56. Bg7+ {[%emt 0:00:02] Weighted Error Value: White=0.13 (very precise) /Black=0.57} 1-0